bitfinex/quotes_ETHUSD_20260208
["timestamp","ask_amount","ask_price","bid_price","bid_amount"]
[1770536756258,1.03393136,2081.2,2080.7,0.001]
[1770536756440,0.002,2081.3,2080.7,0.001]
[1770536756644,1.03393095,2081.2,2080.7,0.001]
[1770536756945,0.002,2080.8,2080.7,0.001]
[1770536759826,0.002,2080.8,2080.7,4.05161274]
[1770536761344,0.002,2080.8,2080.7,0.001]
[1770536762129,3.67899182,2080.8,2080.5,0.001]
[1770536763141,0.002,2080.8,2080.5,0.001]
[1770536768459,0.002,2080.8,2080.7,0.001]
[1770536769159,0.002,2080.8,2080.5,0.001]
[1770536775270,0.002,2080.8,2080.3,4.23807523]
[1770536781076,0.002,2080.8,2080.5,0.001]
[1770536781077,0.002,2080.6,2080.5,0.001]
[1770536785182,0.002,2080.6,2080.3,4.30496745]
[1770536790196,0.002,2080.6,2080.4,4.30396745]
[1770536791301,0.002,2080.6,2080.5,4.30396745]
[1770536792784,0.002,2080.8,2080.6,4.30396745]
[1770536794381,0.0028,2081.5,2080.6,4.30396745]
[1770536794382,1.20085592,2081.9,2081.2,4.30396745]
[1770536794571,1.20083074,2081.9,2081.2,4.30396745]
[1770536795291,1.20083074,2081.9,2081.2,1.20121365]
[1770536795491,5.00671173,2081.9,2081.3,4.30396745]
[1770536795789,5.00671173,2081.9,2081.1,4.30396745]
[1770536795790,4.16670516,2081.7,2081.1,4.30396745]
[1770536795996,3.8087116,2081.6,2080.9,4.19401955]
[1770536797373,1.20105693,2081.5,2080.9,4.19401955]
[1770536804591,1.20105693,2081.5,2081.1,0.001]
[1770536804978,0.002,2081.4,2081.1,0.001]
[1770536812209,1.20295209,2081.7,2081.3,4.19401955]
[1770536812912,0.002,2081.7,2081.3,4.19401955]
[1770536813283,0.002,2081.7,2081.1,1.20227059]
[1770536813284,0.006,2081.7,2081.1,4.19501955]
[1770536814413,0.006,2081.7,2081.2,4.19401955]
[1770536814909,0.006,2081.7,2081.3,4.19401955]
[1770536816919,0.002,2081.7,2081.3,4.19401955]
[1770536817490,0.002,2081.7,2081.3,4.19501955]
[1770536817910,0.006,2081.7,2081.3,4.19501955]
[1770536818216,0.002,2081.5,2081.3,4.19501955]
[1770536820392,0.006,2081.5,2081.3,4.19501955]
[1770536820588,0.006,2081.5,2081.1,0.001]
[1770536820789,3.871536,2081.5,2081.1,0.001]
[1770536821032,3.869536,2081.3,2080.7,3.83]
[1770536821215,3.869536,2081.3,2080.6,4.19401955]
[1770536821520,1.20223005,2081.2,2080.6,4.19401955]
[1770536821895,0.001,2081.1,2080.6,4.19401955]
[1770536822400,3.87468564,2081.1,2080.5,0.001]
[1770536823133,3.87468564,2081.1,2080.5,4.19501955]
[1770536823335,5.07598237,2081.1,2080.5,4.19501955]
[1770536825337,5.07598237,2081.1,2080.5,0.001]
[1770536825606,3.87981674,2081.0,2080.5,0.001]
[1770536826040,3.88180527,2080.8,2080.5,0.001]
[1770536826236,3.88180527,2080.8,2080.3,0.001]
[1770536826436,3.88479335,2080.7,2080.3,0.001]
[1770536826651,3.88379335,2080.7,2080.3,0.001]
[1770536826856,0.001,2080.6,2080.3,0.001]
[1770536830332,1.20151871,2080.7,2080.3,0.001]
[1770536830532,0.001,2080.6,2080.3,0.001]
[1770536831260,0.002,2080.4,2080.3,0.001]
[1770536836160,0.003,2080.4,2080.3,0.001]
[1770536846072,0.003,2080.4,2080.0,0.001]
[1770536846375,0.003,2080.4,2080.0,4.29168082]
[1770536851976,0.002,2080.4,2080.0,4.29168082]
[1770536854668,0.002,2080.4,2080.2,0.001]
[1770536854868,0.002,2080.3,2080.1,4.29068082]
[1770536855786,4.16579823,2080.2,2079.7,0.001]
[1770536855984,0.002,2080.3,2079.5,0.001]
[1770536855985,4.16579823,2080.0,2079.5,0.001]
[1770536856284,1.20192307,2080.0,2079.5,3.831]
[1770536856588,4.16579823,2079.8,2079.5,0.001]
[1770536856767,4.16579823,2079.6,2079.2,0.0018]
[1770536856961,8.09403173,2079.6,2079.2,3.8318]
[1770536857159,8.09403173,2079.6,2078.9,4.50889942]
[1770536857366,8.09135625,2079.4,2078.8,0.001]
[1770536857686,5.45195719,2079.6,2078.8,4.50989942]
[1770536857862,1.03270061,2079.5,2078.8,2.63144236]
[1770536858068,1.03270061,2079.4,2078.8,2.63144236]
[1770536858371,1.20226988,2079.4,2078.8,2.63144236]
[1770536858582,5.36806811,2079.4,2078.6,4.50989942]
[1770536858780,4.58320271,2079.3,2078.6,4.50989942]
[1770536859165,5.36806811,2079.4,2078.6,4.50989942]
[1770536860195,4.58320271,2079.3,2078.6,4.50989942]
[1770536860891,4.58320271,2079.7,2078.7,4.50889942]
[1770536861090,4.80831638,2079.8,2079.0,4.50889942]
[1770536861395,1.20192307,2080.0,2079.0,4.50889942]
[1770536862868,1.20192307,2080.0,2079.2,4.50889942]
[1770536863591,5.78512578,2080.0,2079.2,4.50889942]
[1770536865494,4.58320271,2079.8,2079.1,4.50889942]
[1770536865672,1.20192307,2080.0,2079.1,4.50889942]
[1770536865673,5.78512578,2080.0,2079.1,4.50889942]
[1770536865874,1.20192307,2080.0,2079.3,4.50889942]
[1770536866096,1.20192307,2080.0,2079.3,3.88294227]
[1770536867498,0.002,2079.8,2079.3,5.08525815]
[1770536877313,0.002,2079.8,2079.3,5.03231588]
[1770536877517,0.002,2079.8,2079.4,4.50889942]
[1770536879431,0.002,2079.8,2079.5,4.50889942]
[1770536879916,0.002,2079.6,2079.5,4.50989942]
[1770536880301,0.002,2079.8,2079.6,4.50889942]
[1770536882022,0.002,2079.8,2079.7,4.50889942]
[1770536883929,0.002,2080.3,2079.7,4.50889942]
[1770536884301,0.002,2080.3,2079.8,4.50889942]
[1770536886142,0.002,2080.3,2080.0,4.45128458]
[1770536886821,0.002,2080.3,2079.8,5.65329004]
[1770536887437,0.002,2080.3,2079.9,4.45128458]
[1770536888813,0.002,2080.3,2080.0,4.45128458]
[1770536890819,0.002,2080.3,2080.1,4.45128458]
[1770536892917,0.002,2080.3,2080.2,4.45128458]
[1770536896041,0.002,2080.4,2080.2,4.45128458]
[1770536896042,0.002,2080.4,2080.3,4.685436]
[1770536896340,0.002,2080.6,2080.3,4.685436]
[1770536896341,1e-08,2080.6,2080.3,4.685436]
[1770536896634,1e-08,2080.6,2080.5,4.685436]
[1770536898332,1e-08,2080.6,2080.4,1.20169198]
[1770536898333,1e-08,2080.6,2080.3,5.8871465]
[1770536900822,1e-08,2080.6,2080.0,0.001]
[1770536901021,4.72945179,2080.6,2080.0,0.001]
[1770536902115,4.72945178,2080.4,2080.0,0.001]
[1770536903127,5.93120152,2080.3,2080.0,0.001]
[1770536904830,4.72945178,2080.3,2080.0,0.001]
[1770536905638,5.93121035,2080.3,2080.0,0.001]
[1770536905857,5.93121035,2080.3,2080.2,0.001]
[1770536910166,0.002,2080.4,2080.2,0.001]
[1770536910670,0.002,2080.4,2080.2,4.686436]
[1770536910838,0.002,2080.7,2080.4,4.685436]
[1770536912065,0.002,2080.7,2080.5,4.685436]
[1770536913264,0.002,2080.7,2080.3,4.685436]
[1770536913447,0.002,2080.7,2080.3,5.88717837]
[1770536913966,0.002,2080.7,2080.3,4.685436]
[1770536917869,0.002,2080.5,2080.3,4.685436]
[1770536918574,0.002,2080.5,2080.3,5.88718509]
[1770536920382,0.002,2080.5,2080.4,4.28820386]
[1770536920580,0.002,2080.7,2080.4,4.28820386]
[1770536923385,0.002,2080.7,2080.2,5.49097431]
[1770536924280,0.002,2080.7,2080.3,5.48994911]
[1770536924658,0.002,2080.7,2080.3,4.28820386]
[1770536925077,0.002,2080.7,2080.3,5.48994632]
[1770536925660,0.002,2080.7,2080.4,4.28820386]
[1770536929408,0.002,2080.7,2080.3,3.83]
[1770536929573,0.002,2080.7,2080.5,0.001]
[1770536939388,4.58671271,2080.7,2080.5,0.001]
[1770536939588,0.002,2080.7,2080.5,0.001]
[1770536940003,0.002,2080.7,2080.5,4.28920386]
[1770536941038,0.002,2081.2,2080.6,4.28820386]
[1770536941241,0.002,2081.2,2080.9,4.28820386]
[1770536941402,0.002,2081.2,2081.0,4.28820386]
[1770536941604,0.002,2081.4,2081.0,4.28820386]
[1770536942112,0.00400001,2081.4,2081.0,4.28820386]
[1770536945629,0.00400001,2081.4,2081.0,5.48954933]
[1770536947205,0.00400001,2081.4,2081.0,4.28820386]
[1770536948519,0.00400001,2081.4,2081.0,5.48953572]
[1770536949328,0.002,2081.4,2081.1,4.10169784]
[1770536949542,0.002,2081.5,2081.1,4.10169784]
[1770536949903,0.002,2081.5,2081.2,4.10169784]
[1770536950109,0.002,2081.6,2081.2,4.10169784]
[1770536950506,0.00400001,2081.6,2081.2,4.10169784]
[1770536950731,0.00400001,2081.6,2081.3,5.30287018]
[1770536950941,0.00400001,2081.6,2081.4,4.10169784]
[1770536952521,0.0008,2081.9,2081.4,4.10169784]
[1770536953131,0.0008,2081.9,2081.5,4.10169784]
[1770536956620,0.002,2081.7,2081.5,4.10169784]
[1770536956823,0.0008,2081.9,2081.5,4.10169784]
[1770536957231,0.0028,2081.9,2081.5,4.10169784]
[1770536962924,0.0028,2081.9,2081.4,5.03111297]
[1770536963342,0.0028,2081.9,2081.4,3.83]
[1770536963550,4.16546898,2081.9,2081.4,3.83]
[1770536967869,1.20364962,2081.9,2081.4,3.83]
[1770536968272,1.20364962,2081.9,2081.4,3.98955389]
[1770536969538,1.20364962,2081.9,2081.6,0.001]
[1770536975372,0.0028,2081.9,2081.6,0.001]
[1770536979449,3.82295215,2081.9,2081.6,0.001]
[1770536980650,1.20088385,2081.8,2081.6,0.001]
[1770536981070,5.021036,2081.8,2081.6,0.001]
[1770536982248,0.002,2081.7,2081.6,0.001]
[1770536984380,3.82215215,2081.7,2081.2,0.001]
[1770536984677,0.002,2081.7,2081.2,3.65951949]
[1770536985479,0.002,2081.7,2081.3,3.65851949]
[1770536988785,0.0008,2082.1,2081.6,4.15937597]
[1770536988982,1.20056607,2082.4,2081.7,3.65851949]
[1770536990580,1.20042254,2082.6,2081.7,3.65851949]
[1770536990762,3.82015215,2082.5,2081.7,3.65851949]
[1770536990963,1.20053784,2082.4,2081.8,3.65851949]
[1770536992778,1.20053784,2082.4,2081.5,1.20101696]
[1770536993084,5.0208053,2082.2,2081.6,3.65851949]
[1770536995183,5.0228053,2082.2,2082.0,0.001]
[1770536996486,0.002,2082.2,2082.0,0.001]
[1770536997286,3.82015215,2081.8,2081.2,3.65951949]
[1770536997585,3.82015215,2081.8,2081.2,0.001]
[1770536998659,3.82015215,2081.6,2081.2,0.001]
[1770536999185,1.20128778,2081.1,2080.9,0.001]
[1770536999390,3.82015215,2081.1,2080.9,0.001]
[1770536999684,1.20127281,2081.2,2080.9,0.001]
[1770536999685,3.82015215,2081.2,2080.9,0.001]
[1770536999986,1.20121482,2081.3,2080.9,0.001]
[1770537000857,5.02136697,2081.3,2080.9,0.001]
[1770537001988,4.15937597,2081.5,2080.9,0.001]
[1770537001989,3.82015215,2081.5,2080.9,3.65951949]
[1770537002170,1.20088385,2081.8,2080.9,3.65951949]
[1770537002367,1.20081731,2082.0,2081.1,3.65851949]
[1770537002572,1.20075968,2082.1,2081.4,3.65851949]
[1770537003694,0.002,2082.2,2081.4,3.65851949]
[1770537003993,0.002,2082.2,2081.4,3.69701805]
[1770537004173,0.002,2082.2,2081.6,3.65851949]
[1770537006176,0.002,2082.2,2081.7,1.20094153]
[1770537006380,0.002,2082.2,2081.7,4.66294032]
[1770537008375,0.002,2082.2,2081.8,3.46199879]
[1770537008886,0.002,2082.2,2081.9,3.46299879]
[1770537010180,0.002,2082.4,2082.0,3.46199879]
[1770537010496,0.002,2082.4,2082.1,3.46199879]
[1770537010894,0.002,2082.4,2081.9,4.66378382]
[1770537013102,1.20021832,2083.0,2082.3,3.46199879]
[1770537013503,4.74855122,2083.0,2082.3,3.46199879]
[1770537013707,3.5483329,2082.9,2082.3,3.46199879]
[1770537013875,1.20021832,2083.0,2082.3,3.46199879]
[1770537015797,4.80134916,2083.1,2082.3,3.46199879]
[1770537015798,3.5491329,2083.1,2082.3,3.46199879]
[1770537016304,3.5491329,2083.1,2082.2,1.20064111]
[1770537016807,3.5491329,2083.1,2082.2,4.62884559]
[1770537018202,3.5483329,2082.9,2082.2,8.45884559]
[1770537020116,3.5483329,2082.9,2082.3,3.42820448]
[1770537020290,4.7486115,2082.9,2082.3,3.42820448]
[1770537020922,4.7486115,2082.9,2082.2,5.03064111]
[1770537021523,3.5483329,2082.8,2082.2,5.03064111]
[1770537021827,3.5483329,2082.5,2081.9,0.001]
[1770537022591,4.74887074,2082.4,2081.9,0.001]
[1770537024209,1.20053784,2082.4,2081.9,0.001]
[1770537024530,3.5483329,2082.3,2081.9,0.001]
[1770537024998,3.5483329,2082.6,2081.9,3.42920448]
[1770537025193,3.5483329,2082.6,2081.9,0.001]
[1770537029719,1.20053784,2082.4,2081.9,0.001]
[1770537030903,4.74887074,2082.4,2081.9,0.001]
[1770537032030,1.20053784,2082.4,2081.9,3.42920448]
[1770537032443,1.20049121,2082.5,2081.9,3.42920448]
[1770537032736,1.20049121,2082.5,2081.9,0.001]
[1770537033037,3.5483329,2082.4,2081.9,0.001]
[1770537035237,3.5483329,2082.4,2082.1,0.001]
[1770537035238,3.5483329,2082.3,2082.1,0.001]
[1770537036134,3.5483329,2082.3,2081.9,0.001]
[1770537037334,3.69211431,2082.1,2081.9,0.001]
[1770537037515,1.20065315,2082.2,2081.9,0.001]
[1770537037835,1.20063276,2082.3,2081.9,0.001]
[1770537038136,3.69211431,2082.2,2081.9,0.001]
[1770537040436,3.69211431,2082.4,2081.9,0.001]
[1770537042645,3.69211431,2082.2,2081.9,0.001]
[1770537043630,7.84990304,2082.2,2081.9,0.001]
[1770537043947,3.69211431,2082.1,2081.9,0.001]
[1770537044140,3.69211431,2082.1,2081.6,0.001]
[1770537045035,1.20076849,2082.0,2081.6,0.001]
[1770537045337,4.8928828,2082.0,2081.6,0.001]
[1770537046942,3.69211431,2081.9,2081.6,0.001]
[1770537047128,1.20088385,2081.8,2081.6,0.001]
[1770537051358,0.002,2082.1,2081.6,0.001]
[1770537051359,1.20080205,2082.0,2081.6,0.001]
[1770537051736,1.20080205,2082.0,2081.6,3.59220539]
[1770537052627,4.80489851,2082.1,2081.6,3.59220539]
[1770537052953,8.49701282,2082.1,2081.6,0.001]
[1770537055583,4.80489851,2082.1,2081.6,0.001]
[1770537056843,0.002,2082.1,2081.6,3.59220539]
[1770537057159,0.002,2082.1,2081.7,3.59120539]
[1770537058564,4.89484661,2082.1,2081.6,0.001]
[1770537061166,4.89484661,2082.1,2081.8,0.001]
[1770537061542,0.002,2081.9,2081.8,0.001]
[1770537062838,1.20282616,2081.9,2081.8,0.001]
[1770537063675,0.002,2081.9,2081.8,0.001]
[1770537064684,0.002,2082.1,2081.8,0.001]
[1770537064890,1.2027187,2082.1,2081.8,0.001]
[1770537065975,0.002,2082.1,2081.8,0.001]
[1770537068985,0.002,2082.1,2081.8,3.55994597]
[1770537070586,0.002,2082.1,2081.6,3.55994597]
[1770537070792,3.57173028,2082.1,2081.6,0.001]
[1770537071988,3.57173028,2082.1,2081.6,3.55994597]
[1770537071989,0.002,2082.1,2081.6,3.55994597]
[1770537072570,0.002,2082.1,2081.7,3.55894597]
[1770537072777,0.002,2082.1,2081.8,3.55894597]
[1770537073793,0.002,2082.1,2081.8,3.55994597]
[1770537074165,0.002,2081.9,2081.8,3.55994597]
[1770537074487,0.002,2082.1,2081.9,3.42133798]
[1770537075790,0.002,2082.1,2082.0,3.42133798]
[1770537076671,0.0008,2082.7,2082.1,1.20071082]
[1770537076896,0.0008,2082.7,2082.3,3.42133798]
[1770537078188,3.51828427,2082.7,2081.9,8.45212667]
[1770537078388,3.51828427,2082.7,2081.9,7.25133798]
[1770537078389,3.51748427,2082.6,2081.9,7.25133798]
[1770537078973,0.0008,2082.7,2082.0,3.42133798]
[1770537079382,3.51828427,2082.7,2082.0,3.42133798]
[1770537080294,4.71790681,2082.6,2082.0,3.42133798]
[1770537085186,1.20042254,2082.6,2082.0,3.42133798]
[1770537085697,0.0008,2082.7,2082.1,4.15778873]
[1770537086024,1.20221858,2083.0,2082.4,3.42133798]
[1770537086817,0.002,2082.6,2082.4,3.42133798]
[1770537087001,1.20221858,2083.0,2082.3,3.42133798]
[1770537087518,1.20007845,2083.2,2082.6,3.42133798]
[1770537087717,1.54953641,2083.3,2082.6,3.42133798]
[1770537088287,1.54953641,2083.3,2082.7,3.42133798]
[1770537089705,0.34947943,2083.3,2082.7,3.42133798]
[1770537090221,1.54949954,2083.3,2082.7,4.62169625]
[1770537090415,0.34947943,2083.3,2082.8,3.42133798]
[1770537091028,1.54950799,2083.3,2082.8,3.42133798]
[1770537091715,0.34947943,2083.3,2082.8,3.42133798]
[1770537092295,1.54950079,2083.3,2082.8,3.42133798]
[1770537094447,0.34947943,2083.3,2082.9,3.42133798]
[1770537095628,0.34947943,2083.3,2082.8,3.50624102]
[1770537097446,0.34947943,2083.3,2082.9,3.50624102]
[1770537097814,1.54950582,2083.3,2082.9,3.50624102]
[1770537098138,0.34947943,2083.3,2082.9,3.50624102]
[1770537098343,1.549499,2083.3,2082.7,4.70656837]
[1770537098510,0.34947943,2083.3,2082.8,3.50624102]
[1770537099229,0.002,2083.1,2082.8,3.50624102]
[1770537099631,0.002,2083.1,2082.6,4.15409509]
[1770537099632,0.002,2083.1,2082.6,3.50624102]
[1770537099833,0.002,2083.1,2082.7,3.50624102]
[1770537104041,4.56168949,2083.1,2082.5,3.54473958]
[1770537104342,4.56168949,2083.1,2082.5,4.74521366]
[1770537104545,0.002,2083.1,2082.6,3.50624102]
[1770537106139,0.002,2083.1,2082.6,7.33624102]
[1770537108031,4.56171429,2083.1,2082.5,1.23897264]
[1770537109046,3.36155508,2083.1,2082.5,4.74521366]
[1770537109250,0.002,2083.1,2082.6,3.50624102]
[1770537111247,3.36155508,2083.1,2082.4,4.70674874]
[1770537111730,3.36155508,2083.1,2082.4,3.50624102]
[1770537111936,3.36155508,2083.1,2082.7,0.001]
[1770537113144,4.55974711,2083.0,2082.7,0.001]
[1770537113832,1.20019203,2083.0,2082.7,0.001]
[1770537114245,4.55974711,2083.0,2082.7,0.001]
[1770537115634,3.35955508,2083.0,2082.7,0.001]
[1770537115933,4.55975233,2083.0,2082.7,0.001]
[1770537116835,0.002,2083.1,2082.7,3.50724102]
[1770537117929,0.002,2083.1,2082.8,3.50624102]
[1770537119628,1.54950393,2083.3,2082.8,3.50624102]
[1770537119849,0.002,2083.2,2082.8,3.50624102]
[1770537120154,0.002,2083.2,2082.7,0.001]
[1770537120346,0.002,2083.1,2082.7,0.001]
[1770537120549,0.002,2083.2,2082.7,3.50724102]
[1770537120747,3.36155508,2083.2,2082.7,0.001]
[1770537120949,3.35955508,2083.0,2082.7,0.001]
[1770537121335,0.002,2082.9,2082.7,0.001]
[1770537121734,0.002,2082.8,2082.7,0.001]
[1770537121946,4.55974711,2083.0,2082.5,0.001]
[1770537122143,4.55974711,2083.0,2082.2,0.001]
[1770537122144,3.35955508,2082.9,2082.2,0.001]
[1770537122454,3.35955508,2082.7,2082.2,0.001]
[1770537122862,3.35955508,2082.5,2082.2,0.001]
[1770537123182,3.35955508,2082.7,2082.2,0.001]
[1770537124230,3.35955508,2082.5,2082.2,0.001]
[1770537124530,3.35955508,2082.5,2082.4,0.001]
[1770537126143,3.35955508,2082.5,2082.2,0.001]
[1770537126749,4.52199823,2082.4,2082.2,0.001]
[1770537127463,3.32146039,2082.1,2081.6,0.001]
[1770537128159,4.15409509,2082.0,2081.6,0.001]
[1770537128462,3.32146039,2081.9,2081.6,0.001]
[1770537129255,4.52234424,2081.8,2081.6,0.001]
[1770537129654,1.20088385,2081.8,2081.6,0.001]
[1770537131068,3.32146039,2081.7,2081.6,0.001]
[1770537131363,4.52240192,2081.7,2081.6,0.001]
[1770537131942,3.32146039,2081.6,2081.2,0.001]
[1770537133250,4.52247346,2081.6,2081.2,0.001]
[1770537133566,1.20101307,2081.6,2081.2,0.001]
[1770537133972,4.53737936,2081.6,2081.2,0.001]
[1770537134338,3.33636629,2081.9,2081.2,3.55590557]
[1770537134647,1.20086305,2081.9,2081.2,3.55590557]
[1770537134853,1.20086305,2081.9,2081.3,3.55490557]
[1770537135256,4.80307484,2082.0,2081.3,3.55490557]
[1770537135572,1.20067657,2082.2,2081.5,3.55490557]
[1770537135870,4.53704286,2082.2,2081.5,3.55490557]
[1770537136475,3.33636629,2082.1,2081.3,4.75606086]
[1770537136642,3.33636629,2082.1,2081.3,3.55490557]
[1770537136847,3.33636629,2082.1,2081.3,4.75606925]
[1770537137446,4.53713478,2082.0,2081.3,4.75606925]
[1770537138146,4.53713478,2082.0,2081.5,0.001]
[1770537138342,0.002,2081.9,2081.5,0.001]
[1770537143250,1.20088385,2081.8,2081.5,0.001]
[1770537143871,4.53725014,2081.8,2081.5,0.001]
[1770537144381,1.20286421,2081.9,2081.5,0.001]
[1770537145568,3.33836629,2081.9,2081.5,0.001]
[1770537146979,0.002,2081.9,2081.5,0.001]
[1770537148752,3.33836629,2081.9,2081.5,0.001]
[1770537150867,4.53725014,2081.8,2081.7,0.001]
[1770537153557,1.20088385,2081.8,2081.7,0.001]
[1770537154078,1.20283287,2081.9,2081.7,0.001]
[1770537155058,0.002,2081.9,2081.7,0.001]
[1770537157796,0.002,2082.1,2081.7,3.29075124]
[1770537164103,0.002,2082.1,2081.9,0.001]
[1770537170700,3.38818521,2082.0,2081.7,0.001]
[1770537171602,4.58901137,2081.9,2081.7,0.001]
[1770537177720,4.59101137,2081.9,2081.7,0.001]
[1770537179421,4.8016101,2082.7,2081.9,3.28975124]
[1770537179633,1.20048019,2082.5,2081.9,3.28975124]
[1770537179831,1.20045784,2082.6,2082.0,3.28975124]
[1770537180319,4.80153157,2082.7,2082.0,3.28975124]
[1770537180320,1.20039776,2082.7,2082.0,3.28975124]
[1770537180627,0.002,2082.8,2082.1,3.3282498]
[1770537180809,1.2023106,2082.8,2082.1,3.3282498]
[1770537181142,4.59049581,2082.8,2082.1,3.3282498]
[1770537181898,4.59049581,2082.8,2082.1,4.52894797]
[1770537185229,3.38818521,2082.7,2082.1,3.3282498]
[1770537185402,3.38818521,2082.7,2081.9,4.49054577]
[1770537185930,3.38818521,2082.7,2081.9,3.28975124]
[1770537186131,3.30924163,2082.5,2081.9,3.28975124]
[1770537187734,3.30924163,2082.5,2081.8,1.23934476]
[1770537188111,4.50977947,2082.4,2081.7,4.68154534]
[1770537188614,3.30924163,2082.3,2081.7,0.001]
[1770537189034,1.20053784,2082.4,2081.8,3.47964023]
[1770537189215,4.50977947,2082.4,2081.8,3.47964023]
[1770537189540,4.50977947,2082.4,2082.1,0.001]
[1770537189745,0.002,2082.3,2082.1,0.001]
[1770537189907,3.31124163,2082.3,2082.1,0.001]
[1770537190106,4.51186981,2082.3,2082.1,0.001]
[1770537194612,0.002,2082.3,2082.1,0.001]
[1770537197620,3.44990956,2082.3,2082.1,0.001]
[1770537198827,1.20065315,2082.2,2082.1,0.001]
[1770537199230,4.64856271,2082.2,2082.1,0.001]
[1770537200120,4.64856271,2082.2,2081.9,0.001]
[1770537200337,3.44790956,2082.1,2081.9,0.001]
[1770537201230,4.64867427,2082.1,2081.9,0.001]
[1770537201829,3.44790956,2082.0,2081.9,0.001]
[1770537202351,3.44790956,2081.9,2081.6,0.001]
[1770537203259,3.44790956,2081.7,2081.5,0.001]
[1770537205237,1.20099923,2081.6,2081.5,0.001]
[1770537205460,4.64890879,2081.6,2081.5,0.001]
[1770537205660,3.44790956,2081.5,2081.3,0.0018]
[1770537205956,3.44790956,2081.5,2081.3,0.001]
[1770537208755,1.20111463,2081.4,2081.3,0.001]
[1770537209363,4.64900357,2081.5,2081.3,0.001]
[1770537210045,3.44790956,2081.4,2081.1,0.001]
[1770537210842,1.20117234,2081.3,2081.1,0.001]
[1770537211048,1.20117234,2081.3,2081.0,0.001]
[1770537211379,4.6490819,2081.3,2081.0,0.001]
[1770537211992,3.44790956,2081.2,2081.0,0.001]
[1770537212654,1.20117234,2081.3,2081.0,0.001]
[1770537212988,1.20105693,2081.5,2081.0,0.001]
[1770537214673,4.64896649,2081.5,2081.0,0.001]
[1770537215965,4.64896649,2081.5,2081.2,0.001]
[1770537216166,4.64896649,2081.5,2081.0,0.001]
[1770537217853,4.80422772,2081.6,2081.0,0.001]
[1770537218271,8.03134637,2081.6,2081.0,0.001]
[1770537218868,0.7,2081.4,2081.0,0.001]
[1770537220590,1.20117234,2081.3,2081.0,0.001]
[1770537228304,1.20117234,2081.3,2081.2,0.001]
[1770537228644,1.20317234,2081.3,2081.0,0.001]
[1770537230503,3.22711865,2081.2,2080.9,0.001]
[1770537230904,3.22711865,2081.2,2080.8,0.001]
[1770537231201,5.36500053,2081.3,2080.8,0.001]
[1770537231603,1.20317234,2081.3,2080.8,3.21831845]
[1770537232175,0.002,2081.3,2080.8,3.21831845]
[1770537233020,0.002,2081.5,2080.8,5.36428635]
[1770537233188,0.002,2081.5,2080.9,3.21731845]
[1770537233519,0.002,2081.5,2081.1,3.21731845]
[1770537233978,0.002,2082.0,2081.4,3.21731845]
[1770537234182,0.002,2082.0,2081.6,3.21731845]
[1770537239596,0.002,2082.0,2081.4,1.20107667]
[1770537239796,0.002,2082.0,2081.4,4.41839512]
[1770537240013,0.002,2082.0,2081.5,3.21731845]
[1770537240990,0.002,2081.8,2081.5,3.21731845]
[1770537252121,0.002,2081.8,2081.6,3.26934711]
[1770537252827,1.7e-07,2081.8,2081.7,0.001]
[1770537265518,1.7e-07,2081.8,2081.7,3.26694004]
[1770537266531,0.0028,2082.5,2082.1,3.26594004]
[1770537266731,0.34947943,2083.3,2082.6,3.26594004]
[1770537266931,6.17993859,2083.6,2082.6,3.26594004]
[1770537267233,4.44927279,2083.6,2082.9,3.26594004]
[1770537271419,3.24940259,2083.5,2082.7,3.26594004]
[1770537271739,3.24940259,2083.3,2082.7,3.26594004]
[1770537272235,3.24940259,2083.3,2082.5,4.46641973]
[1770537272443,2.99852908,2083.3,2082.5,4.46641973]
[1770537272818,5.36169839,2083.6,2082.7,3.26594004]
[1770537273019,3.24940259,2083.5,2082.7,3.26594004]
[1770537275036,1.1999616,2083.4,2082.7,3.26594004]
[1770537275242,3.24940259,2083.3,2082.7,3.26594004]
[1770537275944,3.24940259,2083.3,2082.5,4.47841736]
[1770537276252,3.24940259,2083.3,2082.7,3.27797741]
[1770537276253,0.7,2083.2,2082.7,3.27797741]
[1770537276444,3.4194427,2083.3,2082.7,3.27797741]
[1770537276648,3.355,2083.6,2083.0,0.03849856]
[1770537276822,3.4694427,2083.5,2082.8,3.27797741]
[1770537277023,3.4694427,2083.2,2082.6,3.27797741]
[1770537277227,3.4694427,2083.2,2082.4,3.27797741]
[1770537277434,3.4694427,2083.2,2082.4,4.47847476]
[1770537277646,3.4694427,2083.2,2082.5,1.20047307]
[1770537278139,3.4694427,2083.2,2082.5,4.47845048]
[1770537278539,3.4694427,2083.2,2082.6,1.20041943]
[1770537279447,3.4694427,2082.9,2082.3,1.20059478]
[1770537279640,3.4694427,2082.9,2082.2,1.20061293]
[1770537280241,3.4694427,2082.9,2082.2,4.47859034]
[1770537280624,3.4694427,2083.1,2082.3,3.27797741]
[1770537280828,3.4694427,2083.2,2082.4,4.47848331]
[1770537281255,1.20013441,2083.1,2082.5,3.27797741]
[1770537281951,3.4694427,2083.1,2082.5,3.27797741]
[1770537282531,1.20011134,2083.2,2082.5,3.27797741]
[1770537282850,4.66955404,2083.2,2082.5,3.27797741]
[1770537283545,4.66955404,2083.2,2082.6,4.47839995]
[1770537284451,1.2020536,2083.3,2082.7,3.27797741]
[1770537284747,0.002,2083.3,2082.7,3.27797741]
[1770537286349,1.20201939,2083.3,2082.7,4.47833213]
[1770537287638,3.4694427,2083.2,2082.6,1.20038506]
[1770537287841,3.4694427,2083.2,2082.6,1.2004213]
[1770537288235,3.4694427,2083.2,2082.3,1.20059549]
[1770537288442,3.4694427,2083.2,2082.5,3.27797741]
[1770537289334,1.20201939,2083.3,2082.5,3.27797741]
[1770537289545,1.20201939,2083.3,2082.6,0.001]
[1770537289746,1.20201939,2083.3,2082.7,3.27797741]
[1770537290455,0.002,2083.3,2082.8,3.27797741]
[1770537290843,0.002,2083.3,2082.7,4.47831142]